bitfinex-derivatives/quotes_SOLF0:USTF0_20220110
["timestamp","ask_amount","ask_price","bid_price","bid_amount"]
[1641826907951,4.25787532,132.6,132.5,1.28835506]
[1641826908250,4.25787532,132.57,132.5,1.28835506]
[1641826908450,7.54517675,132.55,132.49,1.28835506]
[1641826908850,1.885,132.54,132.49,1.28835506]
[1641826909050,4.25787532,132.54,132.51,2.4877306]
[1641826909751,16.92448883,132.57,132.51,2.4877306]
[1641826910150,4.25787532,132.53,132.52,1.28933614]
[1641826910555,4.25787532,132.56,132.52,1.28933614]
[1641826910955,4.25787532,132.59,132.51,1.28933614]
[1641826911155,7.54346924,132.58,132.53,2.4877306]
[1641826911455,9.42846924,132.58,132.53,2.4877306]
[1641826911656,7.54403832,132.57,132.53,2.4877306]
[1641826911858,11.80191364,132.57,132.53,2.4877306]
[1641826912056,11.80191364,132.57,132.52,2.4877306]
[1641826912256,4.25787532,132.57,132.52,2.4877306]
[1641826912456,4.25787532,132.56,132.54,1.28894015]
[1641826912657,7.54090943,132.63,132.54,1.28894015]
[1641826912861,7.54090943,132.63,132.53,1.28894015]
[1641826913857,7.53920386,132.66,132.55,15.64882575]
[1641826914058,4.25735075,132.62,132.55,15.64882575]
[1641826914458,1.885,132.61,132.55,15.64882575]
[1641826914658,7.54375377,132.58,132.55,15.64882575]
[1641826914860,7.54375377,132.58,132.54,2.4877306]
[1641826915059,7.54375377,132.58,132.52,15.64882575]
[1641826915259,7.54603079,132.55,132.52,15.64882575]
[1641826915561,1.885,132.54,132.49,41.24700088]
[1641826915859,1.885,132.54,132.46,41.24700088]
[1641826916060,4.25735075,132.53,132.5,1.2899873]
[1641826916361,4.25735075,132.53,132.47,1.2899873]
[1641826916961,7.54290025,132.59,132.48,1.885]
[1641826917162,1.885,132.65,132.49,6.03800631]
[1641826917360,7.54119377,132.62,132.49,6.03800631]
[1641826917560,41.24700088,132.66,132.5,1.885]
[1641826917761,1.885,132.68,132.51,6.03719662]
[1641826918060,7.54119377,132.62,132.51,6.03719662]
[1641826918560,4.2574736,132.61,132.52,2.22468207]
[1641826919566,4.2574736,132.61,132.52,43.47168295]
[1641826920165,7.54176251,132.61,132.53,2.22468207]
[1641826920768,4.2574736,132.6,132.53,9.76246521]
[1641826920967,7.53778314,132.68,132.54,1.885]
[1641826921168,7.53778314,132.68,132.55,6.0353315]
[1641826921370,7.53863551,132.67,132.55,6.0353315]
[1641826921770,7.53948807,132.65,132.55,6.0353315]
[1641826922170,7.53948807,132.65,132.56,3.50252561]
[1641826922570,4.25713668,132.64,132.56,3.50252561]
[1641826923072,4.25713668,132.64,132.54,3.50252561]
[1641826923270,6.14213668,132.64,132.54,3.50252561]
[1641826923471,7.54119377,132.62,132.57,3.50252561]
[1641826923872,4.25713668,132.63,132.55,3.50252561]
[1641826924070,7.5443229,132.57,132.55,3.50252561]
[1641826924270,9.4293229,132.57,132.54,3.50252561]
[1641826924970,7.5454614,132.55,132.54,2.561e-05]
[1641826926471,11.80481482,132.55,132.51,2.561e-05]
[1641826927572,4.25935342,132.54,132.51,2.561e-05]
[1641826927774,7.54375377,132.58,132.51,2.561e-05]
[1641826928372,4.2585449,132.57,132.51,2.561e-05]
[1641826929475,9.42989211,132.56,132.51,2.561e-05]
[1641826929674,7.54688502,132.52,132.5,10.23504783]
[1641826929876,7.54688502,132.52,132.5,7.344e-05]
[1641826930275,7.54859407,132.51,132.44,61.83976899]
[1641826930477,1.887,132.5,132.44,61.83976899]
[1641826930675,1.887,132.5,132.42,42.40901514]
[1641826930875,7.55058895,132.46,132.42,42.40901514]
[1641826931075,7.55058895,132.46,132.45,3.73406687]
[1641826931275,1.887,132.48,132.42,33.44171514]
[1641826931476,4.26187454,132.46,132.43,3.73506928]
[1641826931675,1.887,132.45,132.43,3.73506928]
[1641826931876,4.26187454,132.46,132.43,3.73506928]
[1641826932275,7.55144421,132.44,132.43,3.73506928]
[1641826932579,9.43844421,132.44,132.4,15.56992713]
[1641826932776,1.887,132.43,132.4,15.56992713]
[1641826932977,1.887,132.43,132.37,61.83976899]
[1641826933282,1.887,132.46,132.31,61.83976899]
[1641826933478,7.55372588,132.4,132.31,61.83976899]
[1641826933678,7.55600892,132.36,132.32,1.67216759]
[1641826933875,4.2637088,132.45,132.32,1.67216759]
[1641826933876,1.889,132.35,132.32,1.67216759]
[1641826934075,7.55572346,132.37,132.32,1.67216759]
[1641826934276,1.889,132.39,132.32,1.67216759]
[1641826934478,7.5597218,132.33,132.25,15.47957441]
[1641826934678,1.889,132.32,132.25,15.47957441]
[1641826934977,7.5622944,132.26,132.25,10.90957441]
[1641826935180,7.5622944,132.26,132.21,45.17570605]
[1641826935181,9.4512944,132.26,132.21,45.17570605]
[1641826935378,7.56859035,132.22,132.12,149.98822518]
[1641826935676,7.57317581,132.18,132.15,20.73606358]
[1641826935876,1.891,132.17,132.12,130.94254168]
[1641826936276,1.891,132.17,132.12,127.71860527]
[1641826936476,7.5783411,132.13,132.12,67.71860527]
[1641826936676,9.4693411,132.13,132.12,9.43234233]
[1641826936876,9.4693411,132.13,132.03,149.98822518]
[1641826937076,9.4693411,132.13,131.8,145.9454]
[1641826937077,1.891,132.12,131.82,25.9906207]
[1641826937378,6.40782102,132.11,131.83,60.5221]
[1641826937576,7.58293839,131.89,131.83,42.5221]
[1641826937779,75.5923,132.1,131.83,42.5221]
[1641826937978,7.583801,131.88,131.83,42.5221]
[1641826938178,7.583801,131.88,131.8,72.8623]
[1641826938381,7.583801,131.88,131.74,77.2167259]
[1641826938581,7.583801,131.88,131.74,9.4762259]
[1641826938983,1.895,132.08,131.74,1.893]
[1641826939182,7.58265089,131.9,131.8,7.58006443]
[1641826939381,1.895,131.96,131.72,1.895]
[1641826939683,1.895,132.06,131.72,1.895]
[1641826939982,4.2783185,131.95,131.79,6.07010653]
[1641826940183,16.83807786,132.05,131.8,1.895]
[1641826940384,7.57633154,132.02,131.87,7.57633154]
[1641826940982,7.57862827,131.98,131.85,1.893]
[1641826941284,7.57719265,132.0,131.86,7.57719265]
[1641826941483,7.57719265,132.0,131.87,1.893]
[1641826941684,4.2783185,131.99,131.87,1.893]
[1641826941884,11.85637246,131.99,131.84,9.47105396]
[1641826942085,11.85637246,131.99,131.84,7.57805396]
[1641826942285,11.85637246,131.99,131.85,1.895]
[1641826942485,4.2783185,131.98,131.85,1.895]
[1641826942890,4.2783185,131.98,131.88,7.57604455]
[1641826943087,4.2783185,131.98,131.9,7.57460991]
[1641826943287,30.29843963,132.08,131.84,6.0675574]
[1641826943288,7.57260232,132.08,131.94,7.57260232]
[1641826943789,7.57260232,132.08,131.95,1.893]
[1641826944187,70.79,132.22,131.95,1.893]
[1641826944389,59.3958,132.35,131.87,66.8601]
[1641826944390,7.5740362,132.06,131.91,9.4650362]
[1641826944589,7.57317581,132.07,131.93,7.57317581]
[1641826944790,7.57374938,132.06,131.94,73.2371]
[1641826944990,4.27673431,132.05,131.94,71.3441]
[1641826945191,7.57489679,132.04,131.94,71.3441]
[1641826945792,7.57661856,132.01,131.94,71.3441]
[1641826945989,7.57661856,132.01,131.87,74.43671856]
[1641826945990,7.57776683,131.99,131.88,1.893]
[1641826946190,7.57891546,131.97,131.86,1.893]
[1641826946491,7.5783411,131.98,131.84,9.4733411]
[1641826946690,4.27673431,131.96,131.85,7.57776683]
[1641826946890,4.27673431,131.96,131.86,1.895]
[1641826947090,7.58006443,131.95,131.84,6.06764575]
[1641826947290,4.27673431,131.98,131.83,1.895]
[1641826947491,7.58035173,131.95,131.8,9.47535173]
[1641826947693,4.27673431,131.94,131.8,9.47535173]
[1641826948092,4.27673431,131.94,131.84,7.57805396]
[1641826948292,4.27673431,131.94,131.85,1.895]
[1641826948493,4.27673431,131.94,131.86,6.06691642]
[1641826948694,4.27673431,131.98,131.87,1.895]
[1641826948992,7.57805396,131.99,131.89,6.06548837]
[1641826949196,7.57805396,131.99,131.9,1.893]
[1641826949597,4.27785717,131.98,131.88,7.57575758]
[1641826949795,4.27785717,131.98,131.89,1.893]
[1641826949995,4.27785717,132.02,131.9,6.06479721]
[1641826950198,4.27785717,132.02,131.91,1.893]
[1641826950602,7.57891546,131.97,131.91,4.61018161]
[1641826950795,7.57862827,131.98,131.91,2.71718161]
[1641826950996,4.27785717,131.96,131.92,2.71718161]
[1641826951396,4.27785717,131.97,131.88,2.71718161]
[1641826951797,7.58035173,131.95,131.88,2.71718161]
[1641826952397,4.27785717,131.94,131.88,2.71718161]
[1641826952797,4.27785717,131.94,131.83,2.71718161]
[1641826953598,4.27785717,131.94,131.85,6.06721009]
[1641826953898,7.57862827,131.98,131.86,1.895]
[1641826954298,4.27785717,131.97,131.87,2.71718161]
[1641826954499,7.57977715,131.96,131.87,2.71718161]
[1641826955099,4.27785717,131.95,131.83,2.71718161]
[1641826955702,7.58092639,131.94,131.83,2.71718161]
[1641826956099,4.27785717,131.93,131.83,2.71718161]
[1641826956598,4.27785717,131.93,131.83,8.78554994]
[1641826957000,4.27785717,131.93,131.84,1.895]
[1641826957499,4.27785717,131.95,131.86,6.06698116]
[1641826957700,4.27785717,131.95,131.87,1.895]
[1641826957899,7.57805396,131.99,131.87,10.67871145]
[1641826958099,7.57805396,131.99,131.87,4.61218161]
[1641826958301,7.57805396,131.99,131.87,10.67870323]
[1641826958499,4.27895532,131.98,131.88,2.71718161]
[1641826958699,4.27895532,131.98,131.9,6.06515638]
[1641826959301,7.57460991,132.05,131.94,6.0633185]
[1641826959501,7.57317581,132.07,131.95,1.893]
[1641826959702,15.20627881,132.28,131.97,6.06154425]
[1641826959906,15.20627881,132.28,132.01,6.05979499]
[1641826960105,15.20627881,132.28,132.02,145.9667]
[1641826960304,37.73,132.33,132.02,145.9667]
[1641826960305,3.00025363,132.23,132.04,6.0585252]
[1641826960504,3.00025363,132.23,132.05,1.891]
[1641826960704,7.5662997,132.21,132.05,1.891]
[1641826960904,7.56973619,132.15,132.04,1.891]
[1641826961104,7.56973619,132.15,132.02,144.0757]
[1641826961105,3.00025363,132.2,132.06,3.14192905]
[1641826961302,7.57145561,132.12,132.06,3.14192905]
[1641826961502,3.00025363,132.2,132.06,3.14192905]
[1641826961703,7.57059581,132.13,132.03,3.14192905]
[1641826961904,7.5694497,132.15,132.03,3.14192905]
[1641826962103,7.5694497,132.15,132.02,70.8361]
[1641826962403,3.00025363,132.14,132.02,70.8361]
[1641826962702,3.00025363,132.14,132.03,3.14257108]
[1641826964004,3.00025363,132.14,132.04,1.891]
[1641826964203,3.00025363,132.14,132.03,3.14257108]
[1641826964403,7.57116899,132.12,132.03,3.14257108]
[1641826964803,7.5740362,132.07,132.03,3.14257108]
[1641826965203,7.5740362,132.07,132.0,3.14257108]
[1641826966003,7.5740362,132.07,131.98,3.14257108]
[1641826966605,7.57547063,132.05,131.98,3.14257108]
[1641826966806,7.57604455,132.04,131.98,3.14257108]
[1641826967307,7.5740362,132.07,131.98,3.14257108]
[1641826967506,30.3030303,132.07,131.98,3.14257108]
[1641826967906,7.57432304,132.07,131.98,3.14257108]
[1641826968507,7.57604455,132.04,131.98,3.14257108]
[1641826968809,7.57719265,132.02,131.98,3.14257108]
[1641826969410,7.57719265,132.02,131.94,3.14257108]
[1641826969909,7.57719265,132.02,131.91,3.14257108]
[1641826970309,7.57719265,132.02,131.95,3.14257108]
[1641826970711,7.57719265,132.02,131.91,3.14257108]
[1641826971111,7.57805396,132.0,131.91,3.14257108]
[1641826971314,7.5794899,131.98,131.91,3.14257108]
[1641826971513,7.5794899,131.98,131.91,28.57755159]
[1641826972112,7.5794899,131.98,131.92,3.14257108]
[1641826972312,7.58236342,131.93,131.86,15.88709191]
[1641826972512,7.5832259,131.91,131.86,15.88709191]
[1641826972912,7.583801,131.9,131.86,15.88709191]
[1641826973412,7.583801,131.9,131.83,40.50532907]
[1641826973613,7.583801,131.9,131.81,12.74374626]
[1641826973815,7.583801,131.9,131.84,3.06306501]
[1641826974213,7.583801,131.9,131.82,3.06306501]
[1641826974713,4.28138722,131.89,131.82,3.06306501]
[1641826975715,4.28138722,131.89,131.81,3.06306501]
[1641826977216,7.58667779,131.85,131.81,3.06306501]
[1641826977617,7.58667779,131.85,131.73,40.50532907]
[1641826977817,7.58840492,131.82,131.73,40.50532907]
[1641826978617,7.58840492,131.82,131.69,12.69619066]
[1641826978819,4.2856353,131.81,131.74,3.09105909]
[1641826979519,4.2856353,131.81,131.7,3.09105909]
[1641826979720,4.2856353,131.81,131.75,3.09105909]
[1641826980217,4.2856353,131.81,131.7,3.09105909]
[1641826980719,4.2856353,131.81,131.69,3.09105909]
[1641826980919,4.2856353,131.81,131.71,2.50149742]
[1641826981518,7.59099708,131.78,131.71,2.50149742]
[1641826981719,7.59099708,131.78,131.72,3.09105909]
[1641826981919,7.59099708,131.78,131.72,0.58965909]
[1641826982120,7.59532128,131.73,131.63,40.50532907]
[1641826982620,9.30442664,131.77,131.63,48.09603804]
[1641826982821,5.01879134,131.72,131.66,7.5889808]
[1641826983022,40.50532907,131.91,131.67,70.8813]
[1641826983221,7.58610226,131.86,131.71,7.58610226]
[1641826983824,4.28607126,131.85,131.72,3.6454875]
[1641826984025,4.28607126,131.85,131.77,7.58293839]
[1641826984225,4.28607126,131.9,131.77,9.47793839]
[1641826984425,4.28607126,131.9,131.77,15.54884843]
[1641826984627,4.28607126,131.9,131.77,7.96591004]
[1641826984827,54.88847783,131.95,131.8,6.06955897]
[1641826985027,41.97480895,131.98,131.83,6.0679805]
[1641826985227,41.97480895,131.98,131.9,7.5751837]
[1641826985426,41.97480895,131.98,131.91,7.57489679]
[1641826985627,41.97480895,131.98,131.92,1.893]
[1641826986026,7.57604455,132.04,131.91,1.893]
[1641826986227,4.28080852,131.97,131.87,1.893]
[1641826986428,11.86087295,131.97,131.84,70.3234]
[1641826986628,4.28080852,131.97,131.84,76.39101618]
[1641826986828,4.28080852,132.0,131.88,10.1480772]
[1641826987027,4.28080852,132.0,131.89,1.893]
[1641826987227,4.28080852,131.96,131.76,1.894]
[1641826987426,4.28080852,131.96,131.78,6.07061391]
[1641826987627,142.33669955,132.14,131.79,1.895]
[1641826987827,70.01889955,132.14,131.84,6.06750441]
[1641826988027,70.01889955,132.14,131.85,144.2699]
[1641826988227,21.40518892,132.13,131.91,6.0647133]
[1641826988427,72.46688963,132.13,131.92,73.1555]
[1641826988630,7.57174226,132.1,131.95,7.57174226]
[1641826988828,74.90409535,132.13,132.03,7.56715853]
[1641826989033,16.27265845,132.09,132.04,1.891]
[1641826989229,16.27265845,132.09,132.01,1.893]
[1641826989429,7.57145561,132.1,132.01,1.893]
[1641826989629,16.27265845,132.12,131.98,1.893]
[1641826989828,7.57489679,132.04,131.9,9.46789679]
[1641826990030,16.27265845,132.09,131.88,1.893]
[1641826990231,7.57432304,132.05,131.92,78.83596259]
[1641826990431,7.57460991,132.05,131.92,73.1555]
[1641826990633,7.57719265,132.0,131.92,71.2625]
[1641826990931,16.27265845,132.08,131.92,71.2625]
[1641826991130,7.5783411,131.98,131.92,71.2625]
[1641826991330,7.5783411,131.98,131.86,70.9874]
[1641826991531,7.5783411,131.98,131.86,1.893]
[1641826991932,4.28007974,131.97,131.86,1.893]
[1641826992132,4.28007974,131.97,131.85,71.1683]
[1641826992532,4.28007974,131.97,131.87,7.57633154]
[1641826992730,4.28007974,131.97,131.88,9.47075758]
[1641826993432,4.28007974,132.02,131.88,9.47075758]
[1641826993631,4.28007974,132.02,131.93,7.57317581]
[1641826993832,4.28007974,132.02,131.96,7.57116899]
[1641826994032,4.28007974,132.02,131.97,1.893]
[1641826994433,7.57374938,132.06,131.94,1.893]
[1641826994634,7.57489679,132.04,131.92,74.2055]
[1641826994932,4.28007974,132.01,131.92,74.2055]
[1641826995131,4.28007974,132.01,131.92,72.3125]
[1641826995333,7.57633154,132.02,131.92,72.3125]
[1641826995530,6.42012946,132.03,131.92,72.3125]
[1641826995733,7.57690559,132.01,131.92,72.3125]
[1641826995932,7.57891546,131.97,131.92,72.3125]
[1641826996133,7.57891546,131.97,131.86,72.6016]
[1641826996333,7.57891546,131.97,131.84,1.895]
[1641826996536,6.42012946,132.0,131.84,1.895]
[1641826996733,6.42012946,131.96,131.91,7.57432304]
[1641826996933,6.42012946,131.96,131.92,1.893]
[1641826997133,7.57604455,132.02,131.89,1.893]
[1641826997333,7.57805396,131.99,131.89,1.893]
[1641826997534,7.57805396,131.99,131.85,73.0613]
[1641826998034,7.57805396,131.99,131.85,71.1683]
[1641826998233,7.58092639,131.94,131.85,71.1683]
[1641826998433,7.58092639,131.94,131.82,71.9463]
[1641826998634,7.58150114,131.93,131.82,70.0513]
[1641826999035,14.0016306,131.93,131.82,70.0513]
[1641826999535,6.42012946,131.92,131.82,70.0513]
[1641827001935,7.58351344,131.89,131.82,70.0513]
[1641827002138,6.42012946,131.92,131.82,70.0513]
[1641827002339,7.58552681,131.86,131.77,72.1064]
[1641827002738,4.28007974,131.85,131.78,3.23942427]
[1641827003541,7.58811701,131.81,131.78,3.23942427]
[1641827003740,7.5889808,131.8,131.78,3.23942427]
[1641827004041,7.5889808,131.8,131.78,1.45632427]
[1641827004239,11.86906054,131.8,131.68,15.85345913]
[1641827004641,7.58725341,131.83,131.69,6.0746255]
[1641827004844,7.58725341,131.83,131.7,1.897]
[1641827005139,7.58466381,131.87,131.73,7.58466381]
[1641827005541,7.58351344,131.89,131.75,7.58351344]
[1641827005741,4.28479403,131.82,131.75,1.895]
[1641827006142,4.28479403,131.88,131.76,2.70458392]
[1641827006342,4.28479403,131.81,131.76,2.70458392]
[1641827006943,4.28479403,131.84,131.73,2.70458392]
[1641827007144,7.58840492,131.81,131.73,2.70458392]
[1641827007744,7.58926877,131.79,131.73,2.70458392]
[1641827008044,7.58926877,131.79,131.71,2.70458392]
[1641827008444,4.28479403,131.78,131.74,2.70458392]
[1641827009049,4.28479403,131.78,131.68,2.70458392]
[1641827009445,4.28479403,131.78,131.75,2.70458392]
[1641827009845,4.28479403,131.78,131.67,2.70458392]
[1641827010147,4.28479403,131.78,131.67,10.29270093]
[1641827010448,4.28479403,131.78,131.68,1.897]
[1641827010647,4.28479403,131.78,131.69,6.07463975]
[1641827010946,7.58754126,131.82,131.7,7.97109935]
[1641827011150,7.58754126,131.82,131.7,6.07409935]
[1641827011349,30.35477139,131.83,131.69,5.20974742]
[1641827011649,7.58955677,131.79,131.71,2.70458392]
[1641827011848,4.28479403,131.81,131.71,2.70458392]
[1641827012047,7.59330271,131.72,131.7,2.70458392]
[1641827012246,7.59330271,131.72,131.63,15.85345913]
[1641827012447,7.59330271,131.72,131.64,7.97405203]
[1641827012647,7.59330271,131.72,131.63,15.85345913]
[1641827012849,4.28479403,131.71,131.64,2.70849048]
[1641827013748,4.28479403,131.71,131.62,2.70849048]
[1641827014550,4.28479403,131.71,131.59,2.70849048]
[1641827014848,7.59589821,131.68,131.59,2.70849048]
[1641827015048,7.59907291,131.62,131.59,2.70849048]
[1641827015752,4.28479403,131.61,131.58,2.70849048]
[1641827015948,4.28479403,131.61,131.6,2.70849048]
[1641827016550,4.28479403,131.64,131.56,2.70849048]
[1641827017051,4.28479403,131.64,131.54,2.70849048]
[1641827017250,4.28479403,131.64,131.55,9.49403285]
[1641827017450,4.28479403,131.64,131.55,7.59503285]
[1641827017751,4.28479403,131.64,131.54,2.70849048]
[1641827017950,7.59907291,131.62,131.54,2.70849048]
[1641827018149,7.59907291,131.62,131.56,2.70849048]
[1641827018550,7.59907291,131.62,131.54,2.70849048]
[1641827018750,4.28479403,131.61,131.54,2.70849048]
[1641827019453,4.28479403,131.63,131.54,2.70849048]
[1641827019750,7.60109456,131.59,131.54,2.70849048]
[1641827019952,7.60225027,131.57,131.54,2.70849048]
[1641827020152,30.40784522,131.6,131.54,2.70849048]
[1641827020352,4.28479403,131.63,131.54,2.70849048]
[1641827020552,89.33935913,131.8,131.51,2.70849048]
[1641827020553,7.60311728,131.55,131.51,2.70849048]
[1641827020753,7.6048519,131.52,131.51,2.70849048]
[1641827020955,7.6048519,131.52,131.48,15.85345913]
[1641827021154,7.60861295,131.49,131.45,42.28050746]
[1641827021958,7.6091919,131.46,131.41,63.06659342]
[1641827022455,4.29614296,131.48,131.41,50.83061675]
[1641827022655,7.61063967,131.42,131.39,42.03739553]
[1641827022855,4.29614296,131.45,131.39,42.03739553]
[1641827023056,8.0,131.48,131.39,42.03739553]
[1641827023356,7.60774468,131.47,131.39,42.03739553]
[1641827023555,11.9045208,131.47,131.39,42.03739553]
[1641827023756,11.9045208,131.47,131.33,7.60774468]
[1641827023956,4.29677612,131.46,131.34,1.901]
[1641827025959,7.60890242,131.45,131.34,1.901]
[1641827026159,30.44835198,131.43,131.31,71.5325]
[1641827026360,7.61266748,131.39,131.31,71.5325]
[1641827027170,4.29677612,131.38,131.31,71.5325]
[1641827027770,7.61382671,131.37,131.3,69.5824]
[1641827027969,7.61382671,131.37,131.26,70.1348]
[1641827028668,4.29677612,131.36,131.26,70.1348]
[1641827029669,7.61556622,131.34,131.26,70.1348]
[1641827030068,7.61556622,131.34,131.23,140.9982]
[1641827030268,7.61701641,131.31,131.23,140.9982]
[1641827030569,7.61846716,131.29,131.18,69.0167]
[1641827031172,4.29677612,131.28,131.18,69.0167]
[1641827031572,102.70390245,131.58,131.18,69.0167]
[1641827031771,102.70390245,131.58,131.19,69.0804]
[1641827032172,12.28893366,131.57,131.19,69.0804]
[1641827032373,33.7960197,131.57,131.19,69.0804]
[1641827032573,7.61933788,131.29,131.19,69.0804]
[1641827032974,7.61759665,131.32,131.19,69.0804]
[1641827033173,7.61846716,131.3,131.19,69.0804]
[1641827033776,4.30150235,131.29,131.19,69.0804]
[1641827034176,7.61962816,131.28,131.19,69.0804]
[1641827034575,4.30150235,131.27,131.19,69.0804]
[1641827035176,7.61614623,131.34,131.19,76.69654623]
[1641827035679,4.30106722,131.33,131.22,7.61469636]
[1641827035877,4.30106722,131.33,131.21,7.61527624]
[1641827036076,4.30106722,131.33,131.19,69.0804]
[1641827036077,4.30106722,131.33,131.23,6.09590231]
[1641827036276,4.30106722,131.33,131.21,7.61498629]
[1641827036477,4.30106722,131.33,131.19,78.30055522]
[1641827036677,11.91663344,131.35,131.2,7.61556622]
[1641827036877,11.91663344,131.35,131.2,9.51856622]
[1641827037480,11.91663344,131.35,131.21,2.09957438]
[1641827037679,4.30106722,131.34,131.21,2.09957438]
[1641827038182,7.61904762,131.29,131.21,2.09957438]
[1641827038380,7.61962816,131.28,131.21,2.09957438]
[1641827038579,4.30106722,131.28,131.2,2.09957438]
[1641827038781,30.46690533,131.36,131.21,7.99972145]
[1641827038980,7.61585621,131.35,131.21,6.09672145]
[1641827039183,7.61585621,131.35,131.22,1.903]
[1641827040283,7.61701641,131.33,131.22,1.903]
[1641827040487,7.61701641,131.33,131.23,4.05726483]
[1641827040686,4.30114169,131.34,131.23,4.05726483]
[1641827040884,7.61469636,131.37,131.23,4.05726483]
[1641827041382,4.30016897,131.36,131.23,4.05726483]
[1641827042083,4.30016897,131.36,131.24,6.0955894]
[1641827042383,4.30016897,131.36,131.24,7.9985894]
[1641827042585,4.30016897,131.36,131.25,6.09492182]
[1641827042783,4.30016897,131.36,131.25,10.15218665]
[1641827042983,4.30016897,131.36,131.25,4.05726483]
[1641827043183,4.30016897,131.36,131.26,4.05726483]
[1641827043583,4.30016897,131.36,131.25,4.05726483]
[1641827043783,177.61218092,131.55,131.27,13.40704555]
[1641827043983,62.41899202,131.63,131.34,6.09086597]
[1641827044186,41.78430223,131.59,131.35,72.6819]
[1641827044383,89.0,131.52,131.4,6.08817409]
[1641827044582,89.0,131.52,131.41,1.901]
[1641827044786,97.0,131.57,131.43,6.08664461]
[1641827044991,97.0,131.57,131.48,7.60196131]
[1641827045185,62.41899202,131.64,131.44,1.901]
[1641827045186,89.0,131.66,131.47,6.08486401]
[1641827045383,41.78430223,131.69,131.48,71.5377]
[1641827045584,3.24917044,131.65,131.49,1.899]
[1641827045985,89.0,131.66,131.49,1.899]
[1641827046183,89.0,131.66,131.55,7.59762954]
[1641827046384,7.60138345,131.64,131.5,4.29417539]
[1641827046584,7.60282825,131.61,131.5,4.29417539]
[1641827046785,7.60282825,131.61,131.49,4.29417539]
[1641827047184,165.27424654,131.63,131.49,4.29417539]
[1641827047385,7.60514108,131.57,131.49,4.29417539]
[1641827047787,2.27424654,131.56,131.43,4.29417539]
[1641827047987,7.60716595,131.54,131.43,4.29417539]
[1641827048685,9.88025529,131.56,131.43,4.29417539]
[1641827048986,2.27424654,131.53,131.41,7.60600875]
[1641827049185,9.88083384,131.55,131.44,4.29417539]
[1641827049787,2.27424654,131.54,131.41,4.29417539]
[1641827050084,7.60832351,131.52,131.41,4.29417539]
[1641827050291,7.6091919,131.5,131.41,4.29417539]
[1641827050586,7.61092929,131.47,131.41,4.29417539]
[1641827050786,7.61092929,131.47,131.36,4.29417539]
[1641827051187,2.27424654,131.46,131.36,4.29417539]
[1641827051787,2.27424654,131.45,131.36,4.29417539]
[1641827052188,2.27424654,131.44,131.36,4.29417539]
[1641827052588,2.27424654,131.43,131.36,4.29417539]
[1641827053189,2.27424654,131.42,131.36,4.29417539]
[1641827053588,2.27424654,131.41,131.33,4.29417539]
[1641827053987,2.27424654,131.41,131.33,11.90452547]
[1641827054188,2.27424654,131.4,131.33,11.90452547]
[1641827054589,2.27424654,131.4,131.34,4.29417539]
[1641827054790,2.27424654,131.4,131.35,7.6091919]
[1641827055090,2.27424654,131.39,131.35,7.6091919]
[1641827055292,15.93479794,131.5,131.32,12.28873657]
[1641827055490,15.93479794,131.5,131.38,7.60774468]
[1641827055690,15.93479794,131.5,131.39,1.901]
[1641827055892,15.93479794,131.5,131.42,7.60543028]
[1641827056192,15.93479794,131.5,131.48,7.60167237]
[1641827056395,2.79685054,131.52,131.49,7.60051684]
[1641827056989,12.73164848,131.53,131.49,7.60051684]
[1641827057190,1.72573582,131.55,131.5,4.29552129]
[1641827057390,41.78430223,131.67,131.51,1.899]
[1641827057591,41.78430223,131.67,131.55,7.59762954]
[1641827058093,41.78430223,131.67,131.52,79.76175101]
[1641827058292,41.78430223,131.67,131.57,7.59647524]
[1641827058493,41.78430223,131.68,131.57,7.59647524]
[1641827058792,41.78430223,131.68,131.6,7.59503285]
[1641827058992,49.38308642,131.68,131.56,67.2128]
[1641827059192,41.78430223,131.68,131.56,74.80985234]
[1641827059492,41.78430223,131.68,131.57,4.29288751]
[1641827059793,49.38135457,131.71,131.57,4.29288751]
[1641827059992,49.38135457,131.71,131.56,74.80985234]
[1641827060195,41.78430223,131.71,131.56,67.2128]
[1641827060396,41.78430223,131.71,131.57,1.899]
[1641827060592,41.78430223,131.71,131.58,7.59618671]
[1641827060792,41.78430223,131.71,131.6,7.59503285]
[1641827061494,49.37933508,131.75,131.61,4.29242452]
[1641827061895,41.78430223,131.75,131.61,4.29242452]
[1641827062093,41.78430223,131.75,131.67,7.59099708]
[1641827062293,41.78430223,131.75,131.65,1.897]
[1641827062593,41.78430223,131.79,131.71,7.58840492]
[1641827062794,41.78430223,131.79,131.67,67.2134]
[1641827062995,7.59330271,131.78,131.67,67.2134]
[1641827063795,89.0,131.81,131.67,67.2134]
[1641827063994,7.59214972,131.8,131.67,67.2134]
[1641827064395,89.0,131.81,131.68,7.59013283]
[1641827064595,119.3720577,131.81,131.67,67.2134]